[Event "Championnat du monde jeunes U12"]
[Date "2024.11.20"]
[White "Sason, Noam"]
[Black "Wang, Zihao(SH)"]
[WhiteElo "2017"]
[BlackElo "1773"]
[Round "6.43"]
[Result "0-1"]
[TimeControl "5400+30"]

1. Nf3 {[%clk 1:30:58]} 1... Nf6 {[%clk 1:30:51]} 2. g3 {[%clk 1:31:20]} 2... g6
{[%clk 1:31:17]} 3. Bg2 {[%clk 1:31:45]} 3... Bg7 {[%clk 1:31:44]} 4. O-O {[%clk
1:32:00]} 4... O-O {[%clk 1:32:13]} 5. d3 {[%clk 1:31:14]} 5... d5 {[%clk
1:31:42]} 6. Nbd2 {[%clk 1:31:33]} 6... Re8 {[%clk 1:31:47]} 7. e4 {[%clk
1:30:36]} 7... e5 {[%clk 1:31:41]} 8. exd5 {[%clk 1:29:17]} 8... Nxd5 {[%clk
1:31:52]} 9. Re1 {[%clk 1:27:47]} 9... c5 {[%clk 1:31:00]} 10. Nc4 {[%clk
1:24:07]} 10... Nc6 {[%clk 1:30:29]} 11. a4 {[%clk 1:20:51]} 11... b6 {[%clk
1:25:56]} 12. Ng5 {[%clk 1:18:00]} 12... f6 {[%clk 1:19:54]} 13. Ne4 {[%clk
1:06:56]} 13... Be6 {[%clk 1:18:33]} 14. Ned6 {[%clk 1:05:00]} 14... Rf8 {[%clk
1:16:49]} 15. f4 {[%clk 1:01:00]} 15... Qd7 {[%clk 1:15:45]} 16. c3 {[%clk
0:55:50]} 16... Rab8 {[%clk 1:13:45]} 17. Qf3 {[%clk 0:46:27]} 17... Nde7 {[%clk
1:13:06]} 18. Ne4 {[%clk 0:43:36]} 18... Bxc4 {[%clk 1:03:40]} 19. dxc4 {[%clk
0:44:00]} 19... f5 {[%clk 1:04:06]} 20. Nf2 {[%clk 0:43:17]} 20... e4 {[%clk
1:04:09]} 21. Qe2 {[%clk 0:42:51]} 21... Na5 {[%clk 1:02:26]} 22. Be3 {[%clk
0:41:26]} 22... Rfd8 {[%clk 1:01:21]} 23. Bf1 {[%clk 0:39:20]} 23... Qe6 {[%clk
0:59:23]} 24. Rad1 {[%clk 0:37:38]} 24... Kf7 {[%clk 0:59:13]} 25. Rxd8 {[%clk
0:25:49]} 25... Rxd8 {[%clk 0:59:18]} 26. Rd1 {[%clk 0:26:17]} 26... Rxd1 {[%clk
0:58:17]} 27. Nxd1 {[%clk 0:26:39]} 27... Nc8 {[%clk 0:56:53]} 28. Bf2 {[%clk
0:25:16]} 28... Qd7 {[%clk 0:52:44]} 29. Qc2 {[%clk 0:25:12]} 29... Ne7 {[%clk
0:52:08]} 30. Ne3 {[%clk 0:24:46]} 30... Qd6 {[%clk 0:51:38]} 31. Be2 {[%clk
0:22:07]} 31... Bf6 {[%clk 0:51:32]} 32. Kf1 {[%clk 0:20:20]} 32... h6 {[%clk
0:51:12]} 33. Qd1 {[%clk 0:19:11]} 33... Ke6 {[%clk 0:49:30]} 34. Ke1 {[%clk
0:18:27]} 34... Qc6 {[%clk 0:47:44]} 35. g4 {[%clk 0:16:42]} 35... Nb7 {[%clk
0:45:07]} 36. gxf5+ gxf5 {[%clk 0:45:22]} 37. Bh5 {[%clk 0:16:18]} 37... Qd6
{[%clk 0:44:16]} 38. Nd5 {[%clk 0:15:39]} 38... Nd8 {[%clk 0:41:44]} 39. Nxf6
{[%clk 0:13:40]} 39... Qxd1+ {[%clk 0:42:03]} 40. Kxd1 {[%clk 0:14:01]} 40...
Kxf6 {[%clk 0:42:30]} 41. Kd2 {[%clk 0:13:39]} 41... Ke6 {[%clk 0:42:31]} 42. b4
{[%clk 0:12:01]} 42... Nb7 {[%clk 0:42:25]} 43. Be8 {[%clk 0:12:01]} 43... a5
{[%clk 0:42:01]} 44. Bb5 {[%clk 0:11:07]} 44... Kd6 {[%clk 0:41:12]} 45. h4
{[%clk 0:10:07]} 45... Nc6 {[%clk 0:39:45]} 46. bxa5 {[%clk 0:08:24]} 46...
Ncxa5 {[%clk 0:39:20]} 47. h5 {[%clk 0:08:42]} 47... Ke6 {[%clk 0:38:36]} 48.
Bh4 {[%clk 0:08:12]} 48... Nd6 {[%clk 0:37:53]} 49. Bd8 {[%clk 0:08:29]} 49...
Naxc4+ {[%clk 0:36:24]} 50. Ke2 {[%clk 0:08:47]} 50... Nxb5 {[%clk 0:34:30]} 51.
axb5 {[%clk 0:09:16]} 51... Kd7 {[%clk 0:33:35]} 52. Bf6 {[%clk 0:08:42]} 52...
Nd6 {[%clk 0:32:39]} 53. Bg7 {[%clk 0:08:26]} 53... Nxb5 {[%clk 0:32:35]} 54.
Kd2 {[%clk 0:08:43]} 54... Ke6 {[%clk 0:31:47]} 55. Bxh6 {[%clk 0:09:05]} 55...
Kf7 {[%clk 0:32:13]} 56. Bg5 {[%clk 0:09:21]} 56... Nd6 {[%clk 0:32:27]} 57. Ke2
{[%clk 0:08:54]} 57... b5 {[%clk 0:31:58]} 58. Bd8 {[%clk 0:07:55]} 58... Nb7
{[%clk 0:31:28]} 59. Bh4 {[%clk 0:07:31]} 59... Kg7 {[%clk 0:31:50]} 60. Bg5
{[%clk 0:07:53]} 60... c4 {[%clk 0:32:10]} 61. Ke3 {[%clk 0:08:08]} 61... Nc5
{[%clk 0:31:07]} 62. Kd4 {[%clk 0:08:08]} 62... Ne6+ {[%clk 0:31:33]} 63. Ke5
{[%clk 0:08:32]} 63... Nxg5 {[%clk 0:31:16]} 64. fxg5 {[%clk 0:09:01]} 64... e3
{[%clk 0:31:38]} 65. h6+ {[%clk 0:09:04]} 65... Kg6 {[%clk 0:32:03]} 66. Kd4 0-1

[Variant "Standard"]
[Site "Europe Echecs"]

[Event "Championnat du monde jeunes U12"]
[Date "2024.11.20"]
[White "Vaidyanathan, Adithya"]
[Black "Park, Onyoo"]
[WhiteElo "2018"]
[BlackElo "1710"]
[Round "6.44"]
[Result "0-1"]
[TimeControl "5400+30"]

1. d4 {[%clk 1:30:57]} 1... Nf6 {[%clk 1:30:54]} 2. Nf3 {[%clk 1:31:23]} 2... d5
{[%clk 1:31:19]} 3. c4 {[%clk 1:31:50]} 3... dxc4 {[%clk 1:31:35]} 4. Nc3 {[%clk
1:32:08]} 4... a6 {[%clk 1:31:47]} 5. a4 {[%clk 1:32:28]} 5... e6 {[%clk
1:22:50]} 6. e4 {[%clk 1:29:21]} 6... Bb4 {[%clk 1:22:57]} 7. e5 {[%clk
1:28:33]} 7... Nd5 {[%clk 1:23:22]} 8. Bd2 {[%clk 1:28:19]} 8... c5 {[%clk
1:22:21]} 9. dxc5 {[%clk 1:27:21]} 9... Nxc3 {[%clk 1:19:28]} 10. Bxc3 {[%clk
1:27:09]} 10... Bxc3+ {[%clk 1:18:17]} 11. bxc3 {[%clk 1:27:38]} 11... Qa5
{[%clk 1:03:18]} 12. Qd4 {[%clk 1:24:45]} 12... Nd7 {[%clk 0:59:17]} 13. c6
{[%clk 1:23:40]} 13... bxc6 {[%clk 0:59:29]} 14. Bxc4 {[%clk 1:23:45]} 14... c5
{[%clk 0:58:30]} 15. Qd3 {[%clk 1:14:59]} 15... Nb6 {[%clk 0:48:09]} 16. O-O
{[%clk 1:12:55]} 16... Nxc4 {[%clk 0:40:00]} 17. Qxc4 {[%clk 1:13:22]} 17... Bb7
{[%clk 0:37:35]} 18. Ng5 {[%clk 0:59:57]} 18... Bd5 {[%clk 0:31:58]} 19. Qd3
{[%clk 0:59:33]} 19... Rd8 {[%clk 0:25:00]} 20. Qg3 {[%clk 0:46:44]} 20... h6
{[%clk 0:22:22]} 21. Nh3 {[%clk 0:44:31]} 21... O-O {[%clk 0:22:21]} 22. Nf4
{[%clk 0:43:55]} 22... Be4 {[%clk 0:20:10]} 23. Rfe1 {[%clk 0:38:33]} 23... Bf5
{[%clk 0:18:46]} 24. Qe3 {[%clk 0:27:06]} 24... Rb8 {[%clk 0:14:11]} 25. Red1
{[%clk 0:24:06]} 25... Rfd8 {[%clk 0:13:07]} 26. Rd6 {[%clk 0:16:43]} 26... Qxa4
{[%clk 0:07:53]} 27. Re1 {[%clk 0:15:25]} 27... Rxd6 {[%clk 0:07:33]} 28. exd6
{[%clk 0:15:53]} 28... Rd8 {[%clk 0:07:09]} 29. Nh5 {[%clk 0:07:15]} 29... Qg4
{[%clk 0:05:13]} 30. Ng3 {[%clk 0:07:19]} 30... Rxd6 {[%clk 0:05:21]} 31. Qxc5
{[%clk 0:07:39]} 31... Rd1 {[%clk 0:05:29]} 32. Qe3 {[%clk 0:06:39]} 32... Rxe1+
{[%clk 0:05:46]} 33. Qxe1 {[%clk 0:07:07]} 33... Bd3 {[%clk 0:05:44]} 34. h3
{[%clk 0:07:08]} 34... Qg5 {[%clk 0:04:43]} 35. Qd1 {[%clk 0:06:58]} 35... Qb5
{[%clk 0:04:50]} 36. Qf3 {[%clk 0:06:05]} 36... Qd5 {[%clk 0:04:35]} 37. Qf4
{[%clk 0:05:16]} 37... a5 {[%clk 0:04:05]} 38. Qb8+ {[%clk 0:05:03]} 38... Kh7
{[%clk 0:04:33]} 39. Qf8 {[%clk 0:05:07]} 39... Bg6 {[%clk 0:04:28]} 40. Qa3
{[%clk 0:02:38]} 40... Qd1+ {[%clk 0:04:05]} 41. Kh2 {[%clk 0:03:06]} 41... a4
{[%clk 0:04:18]} 42. f4 {[%clk 0:02:26]} 42... Qb3 {[%clk 0:04:15]} 43. Qc5
{[%clk 0:02:12]} 43... a3 {[%clk 0:03:50]} 44. f5 {[%clk 0:02:14]} 44... exf5
{[%clk 0:03:54]} 45. Nxf5 {[%clk 0:02:42]} 45... Qb8+ {[%clk 0:03:59]} 46. g3
{[%clk 0:01:44]} 46... Qb2+ {[%clk 0:04:18]} 47. Kg1 {[%clk 0:02:07]} 47... a2
{[%clk 0:04:41]} 0-1

[Variant "Standard"]
[Site "Europe Echecs"]

[Event "Championnat du monde jeunes U12"]
[Date "2024.11.20"]
[White "Miransh Vyas"]
[Black "Vorobyov, Radmir"]
[WhiteElo "1705"]
[BlackElo "2017"]
[Round "6.45"]
[Result "1-0"]
[TimeControl "5400+30"]

1. d4 {[%clk 1:30:19]} 1... f5 {[%clk 1:30:54]} 2. Nc3 {[%clk 1:30:32]} 2... Nf6
{[%clk 1:31:19]} 3. Bg5 {[%clk 1:25:19]} 3... g6 {[%clk 1:31:38]} 4. h4 {[%clk
1:23:22]} 4... h6 {[%clk 1:30:52]} 5. Bxf6 {[%clk 1:17:45]} 5... exf6 {[%clk
1:31:17]} 6. e4 {[%clk 1:14:13]} 6... d6 {[%clk 1:16:27]} 7. Bd3 {[%clk
1:02:26]} 7... fxe4 {[%clk 1:04:07]} 8. Bxe4 {[%clk 1:00:25]} 8... f5 {[%clk
1:03:43]} 9. Bd3 {[%clk 0:59:05]} 9... Nc6 {[%clk 1:03:55]} 10. Nge2 {[%clk
0:49:58]} 10... Bg7 {[%clk 0:58:21]} 11. Bc4 {[%clk 0:44:02]} 11... Na5 {[%clk
0:36:44]} 12. Qd3 {[%clk 0:32:43]} 12... c6 {[%clk 0:31:27]} 13. Nf4 {[%clk
0:22:03]} 13... d5 {[%clk 0:26:01]} 14. Bb3 {[%clk 0:19:00]} 14... Nxb3 {[%clk
0:26:20]} 15. axb3 {[%clk 0:19:17]} 15... Qd6 {[%clk 0:25:18]} 16. Qe3+ {[%clk
0:18:09]} 16... Kf7 {[%clk 0:24:33]} 17. O-O-O {[%clk 0:17:52]} 17... Re8 {[%clk
0:24:39]} 18. Qf3 {[%clk 0:16:40]} 18... a5 {[%clk 0:22:46]} 19. Na4 {[%clk
0:13:43]} 19... Re4 {[%clk 0:16:56]} 20. Ne2 {[%clk 0:13:33]} 20... b5 {[%clk
0:09:43]} 21. Nc5 {[%clk 0:12:50]} 21... Re7 {[%clk 0:09:26]} 22. c3 {[%clk
0:11:28]} 22... a4 {[%clk 0:07:51]} 23. b4 {[%clk 0:11:08]} 23... a3 {[%clk
0:08:14]} 24. bxa3 {[%clk 0:08:56]} 24... Rxa3 {[%clk 0:08:10]} 25. Kb2 {[%clk
0:09:18]} 25... Rea7 {[%clk 0:08:02]} 26. Ra1 {[%clk 0:09:00]} 26... Rxa1 {[%clk
0:08:05]} 27. Rxa1 {[%clk 0:09:24]} 27... Rxa1 {[%clk 0:08:32]} 28. Kxa1 {[%clk
0:09:46]} 28... Qe7 {[%clk 0:07:53]} 29. g3 {[%clk 0:09:10]} 29... Bf8 {[%clk
0:03:00]} 30. Nd3 {[%clk 0:06:01]} 30... Qa7+ {[%clk 0:01:42]} 31. Kb2 {[%clk
0:06:11]} 31... Bg7 {[%clk 0:02:01]} 32. Nc5 {[%clk 0:05:58]} 32... Bf8 {[%clk
0:01:07]} 33. Nd3 {[%clk 0:05:58]} 33... Bd6 {[%clk 0:00:51]} 34. Nef4 {[%clk
0:03:33]} 34... Qa4 {[%clk 0:00:41]} 35. Qe2 {[%clk 0:02:36]} 35... Bd7 {[%clk
0:00:33]} 36. h5 {[%clk 0:02:01]} 36... g5 {[%clk 0:00:36]} 37. Ng6 {[%clk
0:02:21]} 37... Qa8 {[%clk 0:00:43]} 38. Nde5+ {[%clk 0:02:04]} 38... Bxe5
{[%clk 0:00:43]} 39. Nxe5+ {[%clk 0:02:17]} 39... Ke7 {[%clk 0:00:31]} 40. Nxc6+
{[%clk 0:02:14]} 40... Kd6 {[%clk 0:00:44]} 41. Nb8 {[%clk 0:01:25]} 41... Be6
{[%clk 0:00:34]} 42. Qe5+ {[%clk 0:01:28]} 42... Ke7 {[%clk 0:00:56]} 43. Qc7+
{[%clk 0:01:48]} 43... Kf6 {[%clk 0:01:05]} 44. Qd8+ {[%clk 0:01:34]} 44... Kf7
{[%clk 0:01:06]} 45. Qc7+ {[%clk 0:01:09]} 45... Kf6 {[%clk 0:01:16]} 46. Nc6
{[%clk 0:01:09]} 46... Qe8 {[%clk 0:01:18]} 47. Qe5+ {[%clk 0:01:09]} 47... Kf7
{[%clk 0:01:41]} 48. Qd6 {[%clk 0:01:02]} 48... Kf6 {[%clk 0:01:31]} 49. Nd8
{[%clk 0:01:03]} 49... Qe7 {[%clk 0:01:31]} 50. Qe5# {[%clk 0:00:51]} 1-0

[Variant "Standard"]
[Site "Europe Echecs"]

[Event "Championnat du monde jeunes U12"]
[Date "2024.11.20"]
[White "Dos Santos, Leonardo Lopes"]
[Black "Krasniqi, Troi"]
[WhiteElo "1930"]
[BlackElo "1610"]
[Round "6.46"]
[Result "1/2-1/2"]
[TimeControl "5400+30"]

1. e4 {[%clk 1:30:37]} 1... c5 {[%clk 1:30:58]} 2. Nf3 {[%clk 1:31:01]} 2... d6
{[%clk 1:31:27]} 3. d4 {[%clk 1:31:22]} 3... cxd4 {[%clk 1:31:53]} 4. Nxd4
{[%clk 1:31:47]} 4... Nf6 {[%clk 1:32:15]} 5. Nc3 {[%clk 1:31:30]} 5... Nc6
{[%clk 1:32:37]} 6. Be2 {[%clk 1:28:07]} 6... e5 {[%clk 1:30:41]} 7. Nf3 {[%clk
1:26:39]} 7... Bg4 {[%clk 1:29:44]} 8. Be3 {[%clk 1:23:25]} 8... Be7 {[%clk
1:26:23]} 9. O-O {[%clk 1:20:01]} 9... O-O {[%clk 1:24:54]} 10. Re1 {[%clk
1:11:27]} 10... Rc8 {[%clk 1:21:11]} 11. a3 {[%clk 1:04:48]} 11... a6 {[%clk
1:17:10]} 12. h3 {[%clk 0:57:13]} 12... Be6 {[%clk 1:16:05]} 13. Qd2 {[%clk
0:51:12]} 13... d5 {[%clk 1:10:00]} 14. exd5 {[%clk 0:50:19]} 14... Nxd5 {[%clk
1:10:06]} 15. Nxd5 {[%clk 0:49:45]} 15... Bxd5 {[%clk 1:10:19]} 16. Rad1 {[%clk
0:46:31]} 16... Be6 {[%clk 1:08:48]} 17. Qxd8 {[%clk 0:42:26]} 17... Rfxd8
{[%clk 1:08:59]} 18. Rxd8+ {[%clk 0:37:45]} 18... Rxd8 {[%clk 1:09:11]} 19. Bd3
{[%clk 0:35:45]} 19... Bf6 {[%clk 1:00:27]} 20. Bb6 {[%clk 0:32:01]} 20... Rd7
{[%clk 0:59:19]} 21. Be4 {[%clk 0:28:45]} 21... Nd4 {[%clk 0:52:15]} 22. Nxd4
{[%clk 0:27:42]} 22... exd4 {[%clk 0:51:08]} 23. Rd1 {[%clk 0:26:47]} 23... Be5
{[%clk 0:43:47]} 24. Bf3 1/2-1/2

[Variant "Standard"]
[Site "Europe Echecs"]

[Event "Championnat du monde jeunes U12"]
[Date "2024.11.20"]
[White "Yin, Milo"]
[Black "Kraucenka, Justas"]
[WhiteElo "1925"]
[BlackElo "1650"]
[Round "6.47"]
[Result "0-1"]
[TimeControl "5400+30"]

1. e4 {[%clk 1:30:30]} 1... e6 {[%clk 1:30:55]} 2. d3 {[%clk 1:30:50]} 2... d5
{[%clk 1:31:18]} 3. Nd2 {[%clk 1:31:10]} 3... dxe4 {[%clk 1:31:29]} 4. dxe4
{[%clk 1:31:31]} 4... b6 {[%clk 1:26:23]} 5. Bb5+ {[%clk 1:22:56]} 5... c6
{[%clk 1:24:14]} 6. Bd3 {[%clk 1:19:55]} 6... Nd7 {[%clk 1:22:06]} 7. Ngf3
{[%clk 1:11:37]} 7... Nc5 {[%clk 1:18:54]} 8. Be2 {[%clk 1:02:10]} 8... Nf6
{[%clk 1:18:01]} 9. e5 {[%clk 0:57:35]} 9... Nfe4 {[%clk 1:18:10]} 10. O-O
{[%clk 0:55:56]} 10... Nxd2 {[%clk 1:16:46]} 11. Bxd2 {[%clk 0:52:55]} 11... Qc7
{[%clk 1:13:42]} 12. Bf4 {[%clk 0:50:11]} 12... Bb7 {[%clk 1:10:30]} 13. c3
{[%clk 0:48:23]} 13... Be7 {[%clk 1:07:06]} 14. Qc2 {[%clk 0:47:14]} 14... O-O-O
{[%clk 1:06:23]} 15. b4 {[%clk 0:46:35]} 15... Nd7 {[%clk 1:06:24]} 16. a4
{[%clk 0:44:24]} 16... h6 {[%clk 1:04:15]} 17. a5 {[%clk 0:42:51]} 17... b5
{[%clk 1:04:13]} 18. a6 {[%clk 0:42:47]} 18... Ba8 {[%clk 1:04:38]} 19. c4
{[%clk 0:38:59]} 19... bxc4 {[%clk 1:03:58]} 20. Bxc4 {[%clk 0:34:48]} 20... g5
{[%clk 1:04:02]} 21. Bg3 {[%clk 0:31:43]} 21... h5 {[%clk 1:04:17]} 22. h4
{[%clk 0:22:46]} 22... gxh4 {[%clk 1:04:18]} 23. Nxh4 {[%clk 0:19:26]} 23...
Bxh4 {[%clk 1:04:35]} 24. Bxh4 {[%clk 0:19:36]} 24... Rdg8 {[%clk 1:04:15]} 25.
f4 {[%clk 0:14:00]} 25... Rg4 {[%clk 1:00:09]} 26. g3 {[%clk 0:09:40]} 26...
Rhg8 {[%clk 0:58:41]} 27. Kh2 {[%clk 0:09:32]} 27... c5 {[%clk 0:58:23]} 28. Be2
{[%clk 0:08:55]} 28... Rxh4+ {[%clk 0:45:50]} 29. gxh4 {[%clk 0:00:42]} 29...
Qd8 {[%clk 0:45:55]} 0-1

[Variant "Standard"]
[Site "Europe Echecs"]

[Event "Championnat du monde jeunes U12"]
[Date "2024.11.20"]
[White "To, Nam Long"]
[Black "Bundan, Edward"]
[WhiteElo "1608"]
[BlackElo "1905"]
[Round "6.48"]
[Result "0-1"]
[TimeControl "5400+30"]

1. d4 {[%clk 1:30:56]} 1... d5 {[%clk 1:30:54]} 2. Bf4 {[%clk 1:31:01]} 2... c5
{[%clk 1:31:11]} 3. c3 {[%clk 1:30:48]} 3... Nf6 {[%clk 1:31:02]} 4. e3 {[%clk
1:30:16]} 4... Nc6 {[%clk 1:31:07]} 5. Nd2 {[%clk 1:29:30]} 5... Bf5 {[%clk
1:29:42]} 6. Ngf3 {[%clk 1:29:23]} 6... Qb6 {[%clk 1:28:14]} 7. Qb3 {[%clk
1:26:00]} 7... c4 {[%clk 1:27:22]} 8. Qxb6 {[%clk 1:23:58]} 8... axb6 {[%clk
1:27:45]} 9. Be2 {[%clk 1:20:57]} 9... b5 {[%clk 1:20:36]} 10. Ne5 {[%clk
1:14:58]} 10... Nxe5 {[%clk 1:17:38]} 11. dxe5 {[%clk 1:14:55]} 11... Nd7 {[%clk
1:15:37]} 12. Nf3 {[%clk 1:12:00]} 12... Nc5 {[%clk 1:08:52]} 13. O-O {[%clk
1:06:58]} 13... Bg4 {[%clk 0:59:38]} 14. Rfd1 {[%clk 0:55:47]} 14... e6 {[%clk
0:58:19]} 15. h3 {[%clk 0:45:50]} 15... Bxf3 {[%clk 0:57:09]} 16. Bxf3 {[%clk
0:33:07]} 16... Be7 {[%clk 0:49:13]} 17. Be2 {[%clk 0:27:28]} 17... O-O {[%clk
0:47:31]} 18. f3 {[%clk 0:27:04]} 18... Na4 {[%clk 0:42:57]} 19. Rd2 {[%clk
0:26:26]} 19... Nc5 {[%clk 0:34:34]} 20. Bd1 {[%clk 0:24:05]} 20... Bh4 {[%clk
0:28:49]} 21. Bc2 {[%clk 0:21:39]} 21... Rfd8 {[%clk 0:22:15]} 22. Kh2 {[%clk
0:16:51]} 22... Be7 {[%clk 0:21:45]} 23. Kg1 {[%clk 0:16:53]} 23... h6 {[%clk
0:18:43]} 24. Kf2 {[%clk 0:15:31]} 24... Na6 {[%clk 0:15:14]} 25. Ke2 {[%clk
0:13:48]} 25... b4 {[%clk 0:14:55]} 26. Kf2 {[%clk 0:13:00]} 26... bxc3 {[%clk
0:15:04]} 27. bxc3 {[%clk 0:13:10]} 27... g5 {[%clk 0:14:54]} 28. Bg3 {[%clk
0:13:11]} 28... f5 {[%clk 0:13:17]} 29. Ke2 {[%clk 0:12:55]} 29... b5 {[%clk
0:12:52]} 30. Be1 {[%clk 0:10:33]} 30... Nc7 {[%clk 0:11:32]} 31. g3 {[%clk
0:10:06]} 31... Ra3 {[%clk 0:11:07]} 32. Rdd1 {[%clk 0:09:53]} 32... Rda8 {[%clk
0:10:49]} 33. Bb1 {[%clk 0:09:58]} 33... Bc5 {[%clk 0:10:25]} 34. Bd2 {[%clk
0:08:59]} 34... Bb6 {[%clk 0:09:33]} 35. Be1 {[%clk 0:08:54]} 35... b4 {[%clk
0:09:17]} 36. cxb4 {[%clk 0:07:31]} 36... Rxe3+ {[%clk 0:09:24]} 37. Kf2 {[%clk
0:07:24]} 37... Rd3+ {[%clk 0:09:34]} 38. Ke2 {[%clk 0:07:37]} 38... Rxd1 {[%clk
0:09:55]} 39. Kxd1 {[%clk 0:07:50]} 39... Bd4 {[%clk 0:10:22]} 0-1

[Variant "Standard"]
[Site "Europe Echecs"]

[Event "Championnat du monde jeunes U12"]
[Date "2024.11.20"]
[White "Gazzato, Nicolo`"]
[Black "Wang, Yu-Chi Xavier"]
[WhiteElo "1868"]
[BlackElo "1543"]
[Round "6.49"]
[Result "1-0"]
[TimeControl "5400+30"]

1. e4 {[%clk 1:30:50]} 1... e5 {[%clk 1:30:33]} 2. Nf3 {[%clk 1:31:12]} 2... Nc6
{[%clk 1:30:55]} 3. Bc4 {[%clk 1:31:38]} 3... Bc5 {[%clk 1:31:14]} 4. c3 {[%clk
1:32:04]} 4... Nf6 {[%clk 1:30:58]} 5. d4 {[%clk 1:32:28]} 5... exd4 {[%clk
1:31:23]} 6. e5 {[%clk 1:32:48]} 6... d5 {[%clk 1:31:24]} 7. Bb5 {[%clk
1:33:15]} 7... Ne4 {[%clk 1:31:23]} 8. cxd4 {[%clk 1:33:38]} 8... Bb6 {[%clk
1:31:06]} 9. Nc3 {[%clk 1:32:53]} 9... O-O {[%clk 1:30:20]} 10. O-O {[%clk
1:31:46]} 10... Bg4 {[%clk 1:29:25]} 11. Bxc6 {[%clk 1:28:40]} 11... bxc6 {[%clk
1:29:31]} 12. h3 {[%clk 1:15:16]} 12... Bh5 {[%clk 1:28:36]} 13. Ne2 {[%clk
0:53:05]} 13... Bxf3 {[%clk 1:07:02]} 14. gxf3 Ng5 {[%clk 1:07:08]} 15. Kg2
{[%clk 0:50:15]} 15... Ne6 {[%clk 1:03:20]} 16. Be3 {[%clk 0:42:40]} 16... f5
{[%clk 0:49:18]} 17. f4 {[%clk 0:38:01]} 17... Qh4 {[%clk 0:45:45]} 18. Qc2
{[%clk 0:28:51]} 18... Nd8 {[%clk 0:40:28]} 19. a4 {[%clk 0:28:15]} 19... a5
{[%clk 0:40:20]} 20. Kh2 {[%clk 0:24:54]} 20... g6 {[%clk 0:36:31]} 21. Rg1
{[%clk 0:23:01]} 21... Kf7 {[%clk 0:34:57]} 22. b3 {[%clk 0:20:43]} 22... Qe7
{[%clk 0:31:27]} 23. Rad1 {[%clk 0:17:59]} 23... Ke6 {[%clk 0:28:24]} 24. Nc1
{[%clk 0:17:37]} 24... Kd7 {[%clk 0:27:16]} 25. Nd3 {[%clk 0:17:54]} 25... Ra6
{[%clk 0:24:03]} 26. Qe2 {[%clk 0:17:18]} 26... Ra8 {[%clk 0:23:21]} 27. Rc1
{[%clk 0:16:47]} 27... Ne6 {[%clk 0:22:58]} 28. Qc2 {[%clk 0:15:49]} 28... Nd8
{[%clk 0:22:47]} 29. Rge1 {[%clk 0:14:46]} 29... Ra6 {[%clk 0:18:06]} 30. Qe2
{[%clk 0:14:36]} 30... Ra8 {[%clk 0:18:00]} 31. Qc2 {[%clk 0:13:47]} 31... Ra6
{[%clk 0:18:23]} 32. f3 {[%clk 0:13:16]} 32... Re8 {[%clk 0:16:21]} 33. Bf2
{[%clk 0:13:37]} 33... Qf8 {[%clk 0:14:44]} 34. Qe2 {[%clk 0:13:02]} 34... Ra8
{[%clk 0:14:01]} 35. Qc2 {[%clk 0:12:07]} 35... Re6 {[%clk 0:13:57]} 36. Qb2
{[%clk 0:11:15]} 36... Qe7 {[%clk 0:12:11]} 37. Rg1 {[%clk 0:10:51]} 37... Nf7
{[%clk 0:10:37]} 38. Be1 {[%clk 0:09:43]} 38... Rb8 {[%clk 0:08:15]} 39. Qf2
{[%clk 0:08:05]} 39... Ba7 {[%clk 0:05:04]} 40. Rb1 {[%clk 0:07:12]} 40... Rb7
{[%clk 0:03:08]} 41. Bxa5 {[%clk 0:07:19]} 41... Qf8 {[%clk 0:02:31]} 42. b4
{[%clk 0:06:12]} 42... Qh6 {[%clk 0:02:00]} 43. b5 {[%clk 0:06:04]} 43... cxb5
{[%clk 0:02:20]} 44. axb5 {[%clk 0:06:00]} 44... g5 {[%clk 0:01:59]} 45. Bd2
{[%clk 0:06:11]} 45... Rg6 {[%clk 0:02:05]} 46. e6+ {[%clk 0:05:48]} 46... Rxe6
{[%clk 0:01:54]} 47. fxg5 {[%clk 0:05:48]} 47... Qg7 {[%clk 0:02:24]} 48. Nc5+
{[%clk 0:06:00]} 48... Bxc5 {[%clk 0:02:45]} 49. dxc5 {[%clk 0:06:25]} 49...
Qe5+ {[%clk 0:03:08]} 50. f4 {[%clk 0:05:50]} 50... Qe2 {[%clk 0:03:18]} 51. c6+
{[%clk 0:06:09]} 51... Kd8 {[%clk 0:03:21]} 52. Qxe2 {[%clk 0:05:31]} 52...
Rxe2+ {[%clk 0:03:45]} 53. Rg2 {[%clk 0:05:49]} 53... Rxg2+ {[%clk 0:03:55]} 54.
Kxg2 {[%clk 0:06:18]} 54... Rb8 {[%clk 0:04:12]} 55. Bc3 {[%clk 0:06:28]} 55...
Nd6 {[%clk 0:04:14]} 56. Bf6+ {[%clk 0:06:01]} 56... Ke8 {[%clk 0:04:25]} 57.
Ra1 {[%clk 0:05:24]} 57... Kf8 {[%clk 0:03:01]} 58. Ra7 {[%clk 0:05:36]} 58...
Ne8 {[%clk 0:01:37]} 59. Rb7 {[%clk 0:05:49]} 59... Rc8 {[%clk 0:01:16]} 60. Be5
{[%clk 0:06:10]} 60... Ke7 {[%clk 0:01:07]} 61. Kf2 {[%clk 0:05:54]} 61... Kd8
{[%clk 0:01:18]} 62. Ke3 {[%clk 0:05:53]} 62... Ke7 {[%clk 0:01:12]} 63. Kd4
{[%clk 0:06:15]} 63... Nd6 {[%clk 0:01:26]} 64. b6 {[%clk 0:05:46]} 64... Nxb7
{[%clk 0:00:39]} 65. cxb7 {[%clk 0:06:08]} 1-0

[Variant "Standard"]
[Site "Europe Echecs"]